bitfinex-derivatives/quotes_ETHF0:USTF0_20210109
["timestamp","ask_amount","ask_price","bid_price","bid_amount"]
[1610214470587,6.42969,1220.1,1219.8,98.4072]
[1610214470786,36.42969,1220.1,1219.8,98.4072]
[1610214471288,4.00959,1219.9,1219.8,48.4072]
[1610214471988,4.00959,1219.9,1219.8,98.4072]
[1610214472290,4.00959,1219.9,1219.8,48.4072]
[1610214472688,4.00959,1219.9,1219.8,98.4072]
[1610214475091,4.00959,1219.9,1219.8,50.0]
[1610214477093,2.4201,1220.1,1219.8,50.0]
[1610214477296,6.42969,1220.1,1219.9,50.0]
[1610214477596,6.42969,1220.1,1219.9,56.8033]
[1610214477795,2.4201,1220.1,1220.0,50.0]
[1610214477994,2.0442,1220.5,1220.0,50.0]
[1610214478195,2.0442,1220.5,1220.1,50.0]
[1610214478696,86.53400997,1220.9,1220.2,50.0]
[1610214478896,86.53400997,1220.9,1220.1,50.0]
[1610214479296,86.53400997,1220.9,1220.2,50.0]
[1610214479696,86.53400997,1220.9,1220.1,50.0]
[1610214479898,86.53400997,1220.9,1220.4,47.391]
[1610214480099,116.53400997,1220.9,1220.4,47.391]
[1610214480299,71.29345248,1220.8,1220.4,47.391]
[1610214480800,1.68663683,1220.8,1220.4,47.391]
[1610214481199,1.68663683,1220.8,1220.5,50.0]
[1610214481401,4.00959,1220.6,1220.5,50.0]
[1610214481600,6.37389,1220.6,1220.5,50.0]
[1610214481800,6.37389,1220.6,1220.4,97.391]
[1610214482001,6.37389,1220.6,1220.5,50.0]
[1610214482604,6.37389,1220.6,1220.4,50.0]
[1610214483001,8.06058051,1220.6,1220.4,50.0]
[1610214483601,8.06058051,1220.6,1220.3,114.6617]
[1610214484201,8.06058051,1220.6,1220.4,50.0]
[1610214484606,1.68679061,1220.5,1220.4,50.0]
[1610214484807,1.68679061,1220.5,1220.3,114.6617]
[1610214485308,4.00959,1220.4,1220.3,114.6617]
[1610214487208,4.00959,1220.4,1220.3,64.6617]
[1610214487809,35.69646845,1220.4,1219.9,50.0]
[1610214488008,35.69646845,1220.4,1220.0,62.7102]
[1610214488909,35.69646845,1220.4,1219.8,50.0]
[1610214489311,4.00959,1219.9,1219.8,50.0]
[1610214489910,4.00959,1219.9,1219.7,50.0]
[1610214490311,4.00959,1219.9,1219.6,116.1342]
[1610214490710,4.00959,1219.9,1219.7,50.0]
[1610214491310,4.00959,1219.9,1219.8,50.0]
[1610214491710,4.00959,1219.9,1219.7,50.0]
[1610214492111,4.00959,1219.9,1219.8,50.0]
[1610214492412,4.00959,1219.9,1219.7,50.0]
[1610214492815,4.00959,1219.9,1219.8,50.0]
[1610214493412,4.00959,1219.9,1219.8,98.8447]
[1610214493812,4.00959,1219.9,1219.8,48.8447]
[1610214504032,34.00959,1219.9,1219.8,48.8447]
[1610214506535,34.00959,1219.9,1219.4,50.0]
[1610214506735,94.64469,1219.9,1219.4,50.0]
[1610214506935,94.64469,1219.9,1219.3,50.0]
[1610214507239,94.64469,1219.9,1219.2,50.0]
[1610214507437,4.00959,1219.3,1219.2,50.0]
[1610214508439,4.00959,1219.3,1219.0,50.0]
[1610214508639,4.00959,1219.3,1218.9,52.1241]
[1610214509437,4.00959,1219.0,1218.9,52.1241]
[1610214509638,4.00959,1219.0,1218.9,2.1241]
[1610214509839,4.00959,1219.0,1218.9,50.0]
[1610214510842,4.00959,1219.0,1218.9,51.25390447]
[1610214514843,4.00959,1219.0,1218.9,119.31170447]
[1610214515041,150.0161179,1220.0,1218.9,119.31170447]
[1610214515242,101.9393179,1220.0,1218.9,50.0]
[1610214515442,101.9393179,1220.0,1219.0,104.7746]
[1610214515643,32.348,1220.0,1219.0,104.7746]
[1610214515846,32.348,1220.0,1219.0,54.7746]
[1610214516047,101.92110462,1220.0,1219.0,54.7746]
[1610214516246,32.348,1220.0,1219.1,50.0]
[1610214516546,1.6887633,1219.9,1219.1,50.0]
[1610214516746,1.6887633,1219.9,1219.2,50.0]
[1610214517146,1.6887633,1219.9,1219.3,50.0]
[1610214517348,1.6887633,1219.9,1219.1,50.0]
[1610214517547,4.00959,1219.2,1219.1,50.0]
[1610214517747,4.00959,1219.2,1219.0,54.7746]
[1610214518148,4.00959,1219.2,1219.1,50.0]
[1610214519750,30.0,1219.7,1219.1,50.0]
[1610214520152,30.0,1219.7,1219.2,50.0]
[1610214520350,4.00959,1219.3,1218.9,47.5063]
[1610214520750,4.00959,1219.3,1219.2,50.0]
[1610214521050,4.00959,1219.3,1219.0,50.0]
[1610214521449,4.00959,1219.3,1219.1,50.0]
[1610214521651,4.00959,1219.3,1218.9,47.5063]
[1610214521850,4.00959,1219.3,1219.2,50.0]
[1610214522350,4.00959,1219.3,1218.8,5.89329]
[1610214522551,4.00959,1219.3,1219.0,55.6056]
[1610214522750,4.00959,1219.3,1219.2,50.0]
[1610214522950,4.00959,1219.3,1219.1,50.0]
[1610214523150,4.00959,1219.3,1219.1,66.0286]
[1610214523351,4.00959,1219.3,1219.2,50.0]
[1610214524050,4.00959,1219.3,1219.2,107.8018]
[1610214527456,4.00959,1219.3,1219.2,109.05556661]
[1610214528056,2.348,1220.0,1219.2,109.05556661]
[1610214528255,2.348,1220.0,1219.2,51.25376661]
[1610214528459,4.00959,1219.4,1219.3,54.00959]
[1610214530260,1.8245,1219.9,1219.3,55.26314367]
[1610214530460,4.00959,1219.4,1219.3,5.26314367]
[1610214530860,4.00959,1219.4,1219.3,55.26314367]
[1610214531260,1.8245,1219.9,1219.3,55.26314367]
[1610214531460,1.8245,1219.9,1219.6,56.1432]
[1610214532063,1.8245,1219.9,1219.7,50.0]
[1610214532464,4.00959,1219.8,1219.6,56.1432]
[1610214532862,4.00959,1219.8,1219.7,50.0]
[1610214541076,34.00959,1219.8,1219.6,50.0]
[1610214541478,34.00959,1219.8,1219.4,106.1697]
[1610214542377,4.00959,1219.5,1219.4,106.1697]
[1610214543277,4.00959,1219.5,1219.4,56.1697]
[1610214543478,4.00959,1219.5,1219.4,106.1697]
[1610214544678,34.00959,1219.5,1219.4,106.1697]
[1610214547885,4.00959,1219.5,1219.4,106.1697]
[1610214563107,4.00959,1219.5,1219.4,50.0]
[1610214563507,34.00959,1219.5,1219.4,50.0]
[1610214563707,34.00959,1219.5,1219.1,50.0]
[1610214563907,62.3383,1219.3,1219.1,50.0]
[1610214564108,30.0,1219.2,1218.8,1.8837]
[1610214564308,30.0,1219.2,1218.5,111.7609]
[1610214564508,4.00959,1218.6,1218.5,61.7609]
[1610214564910,6.26039,1218.6,1218.5,61.7609]
[1610214566509,6.26039,1218.6,1218.4,50.0]
[1610214566710,6.26039,1218.6,1218.5,50.0]
[1610214566910,6.26039,1218.6,1218.4,50.0]
[1610214567412,6.26039,1218.6,1218.1,67.0515]
[1610214567413,6.26039,1218.6,1218.5,50.0]
[1610214567710,6.26039,1218.6,1218.2,50.0]
[1610214568112,6.26039,1218.6,1218.3,50.0]
[1610214568311,6.26039,1218.6,1218.4,50.0]
[1610214568712,6.26039,1218.6,1218.1,67.0515]
[1610214568713,6.26039,1218.6,1218.2,50.0]
[1610214569012,6.26039,1218.6,1218.3,50.0]
[1610214569413,6.26039,1218.6,1218.1,67.0515]
[1610214569612,6.26039,1218.6,1218.4,50.0]
[1610214569812,6.26039,1218.6,1218.2,50.0]
[1610214570014,6.26039,1218.6,1218.1,67.0515]
[1610214570216,6.26039,1218.6,1218.3,50.0]
[1610214570415,6.26039,1218.6,1218.3,59.3751]
[1610214570616,4.00959,1218.4,1218.3,9.3751]
[1610214571118,4.00959,1218.4,1218.3,59.3751]
[1610214571515,4.00959,1218.4,1218.3,50.0]
[1610214572316,4.00959,1218.4,1218.3,100.8138]
[1610214573217,2.2508,1218.6,1218.3,100.8138]
[1610214573518,6.601,1219.2,1218.3,100.8138]
[1610214573718,6.601,1219.2,1218.4,50.0]
[1610214574119,36.601,1219.2,1218.5,50.0]
[1610214574418,36.601,1219.2,1218.4,50.0]
[1610214574618,4.00959,1218.5,1218.4,50.0]
[1610214574818,4.00959,1218.5,1218.3,50.8138]
[1610214575020,6.09129,1218.5,1218.3,50.8138]
[1610214575219,6.09129,1218.5,1218.4,50.0]
[1610214578124,2.0817,1218.5,1218.4,50.0]
[1610214578723,2.0817,1218.5,1218.4,54.00959]
[1610214580226,2.0819,1219.3,1218.4,54.00959]
[1610214580429,2.0819,1219.3,1218.8,55.2539]
[1610214580628,6.4594,1219.6,1218.9,4.00959]
[1610214581328,6.4594,1219.6,1218.9,54.00959]
[1610214581528,6.4594,1219.6,1219.0,50.0]
[1610214581729,6.4594,1219.6,1219.1,8.4845]
[1610214581928,6.4594,1219.6,1219.1,50.0]
[1610214582127,6.4594,1219.6,1219.1,108.9336]
[1610214582328,6.4594,1219.6,1219.2,50.0]
[1610214582728,4.00959,1219.3,1219.1,58.9336]
[1610214582928,6.23959,1219.3,1219.1,58.9336]
[1610214583129,6.23959,1219.3,1219.2,50.0]
[1610214592340,6.23959,1219.3,1219.2,58.7824]
[1610214593243,6.23959,1219.3,1219.2,50.0]
[1610214593641,2.23,1219.3,1219.2,50.0]
[1610214593844,1.8245,1219.9,1219.2,50.0]
[1610214594043,46.17128045,1220.4,1218.9,4.00959]
[1610214594044,86.62893652,1220.2,1219.5,67.3843]
[1610214594644,4.00959,1219.6,1219.5,44.3843]
[1610214595251,4.00959,1219.6,1219.5,94.3843]
[1610214599652,4.00959,1219.6,1219.5,50.0]
[1610214607961,1.7405,1219.7,1219.6,62.6285]
[1610214608161,86.4522804,1220.4,1219.6,62.6285]
[1610214608363,86.4522804,1220.4,1219.6,112.6285]
[1610214608562,88.84656585,1220.6,1220.2,57.2584]
[1610214608761,2.3643,1220.6,1219.7,50.0]
[1610214608961,86.51598796,1220.7,1220.5,58.7661]
[1610214609161,6.2425,1221.6,1219.7,1.2531044]
[1610214609162,86.56604544,1220.9,1219.7,1.2531044]
[1610214609363,86.56604544,1220.9,1220.1,154.2118]
[1610214609561,86.62153083,1221.1,1220.6,50.0]
[1610214609760,86.62153083,1221.1,1221.0,9.3492]
[1610214609761,69.7031465,1221.1,1221.0,9.3492]
[1610214610163,86.61919692,1221.2,1221.0,9.3492]
[1610214610564,86.59628711,1221.3,1221.0,50.0]
[1610214610762,86.59628711,1221.3,1221.1,4.00959]
[1610214610963,90.62626804,1221.4,1221.3,56.1479]
[1610214611162,4.00959,1221.4,1221.3,56.1479]
[1610214611761,4.00959,1221.4,1221.3,106.1479]
[1610214612363,5.70507563,1221.4,1221.3,106.1479]
[1610214613663,4.00959,1221.4,1221.3,106.1479]
[1610214616265,6.05769,1221.4,1221.3,106.1479]
[1610214616465,6.05769,1221.4,1221.3,50.0]
[1610214624382,6.05769,1221.4,1221.2,116.4584]
[1610214624683,92.69123355,1221.4,1221.2,116.4584]
[1610214624883,92.69123355,1221.4,1221.0,50.0]
[1610214625285,92.69123355,1221.4,1220.8,101.189]
[1610214625486,69.67984042,1221.3,1220.8,51.189]
[1610214625684,86.58533081,1221.3,1220.8,51.189]
[1610214626384,86.58533081,1221.3,1220.9,50.0]
[1610214626584,1.69645321,1221.2,1220.9,50.0]
[1610214626785,71.32268541,1221.2,1220.9,50.0]
[1610214626985,4.00959,1221.0,1220.9,50.0]
[1610214627185,6.42979,1221.0,1220.9,50.0]
[1610214627987,77.68708511,1221.0,1220.9,50.0]
[1610214628288,94.5645845,1221.0,1220.9,50.0]
[1610214628489,94.5645845,1221.0,1220.8,51.189]
[1610214628989,69.476669,1220.9,1220.8,51.189]
[1610214629388,88.03458091,1220.9,1220.8,51.189]
[1610214630190,88.03458091,1220.9,1220.8,101.189]
[1610214630191,71.17413688,1220.9,1220.8,101.189]
[1610214630392,1.69746788,1220.9,1220.8,101.189]
[1610214630591,4.96236788,1220.9,1220.8,101.189]
[1610214630791,3.2649,1220.9,1220.8,101.189]
[1610214631791,92.79712212,1221.0,1220.8,101.189]
[1610214632191,92.79712212,1221.0,1220.9,50.0]
[1610214632891,94.45542212,1221.0,1220.9,50.0]
[1610214633092,77.59221113,1221.0,1220.9,50.0]
[1610214633596,79.28941775,1221.0,1220.9,50.0]
[1610214633994,8.12699662,1221.0,1220.9,50.0]
[1610214634993,8.08269,1221.0,1220.9,50.0]
[1610214636895,6.42979,1221.0,1220.9,50.0]
[1610214637795,8.04559,1221.0,1220.9,50.0]
[1610214638696,6.42979,1221.0,1220.9,50.0]
[1610214640702,8.06199,1221.0,1220.9,50.0]
[1610214641100,6.42979,1221.0,1220.9,50.0]
[1610214641300,6.42979,1221.0,1220.8,51.189]
[1610214641502,6.42979,1221.0,1220.7,50.0]
[1610214641702,6.42979,1221.0,1220.6,50.0]
[1610214642101,6.42979,1221.0,1220.4,55.56279]
[1610214642102,8.07119,1221.0,1220.5,50.0]
[1610214642302,1.69659539,1220.9,1220.6,50.0]
[1610214642701,1.69659539,1220.9,1220.5,50.0]
[1610214643102,1.69659539,1220.9,1220.7,50.0]
[1610214643303,3.33549539,1220.9,1220.7,50.0]
[1610214643502,4.96089539,1220.9,1220.7,50.0]
[1610214643703,68.86239539,1220.9,1220.6,50.0]
[1610214643902,4.96089539,1220.9,1220.6,50.0]
[1610214644102,4.96089539,1220.9,1220.2,50.0]
[1610214644304,56.0327,1220.8,1220.2,50.0]
[1610214644704,56.0327,1220.8,1220.1,50.0]
[1610214644903,125.42836081,1220.8,1220.1,50.0]
[1610214645103,4.00959,1220.2,1220.0,100.0884]
[1610214645304,5.88179,1220.2,1220.0,50.0]
[1610214645506,5.88179,1220.2,1220.1,50.0]
[1610214646306,7.50039,1220.2,1220.1,50.0]
[1610214646808,5.88179,1220.2,1220.1,50.0]
[1610214647810,7.53449,1220.2,1220.1,50.0]
[1610214648010,7.53449,1220.2,1220.1,108.9075]
[1610214648211,5.88179,1220.2,1220.1,108.9075]
[1610214649012,1.8722,1220.2,1220.1,108.9075]
[1610214649215,3.5279,1220.2,1220.1,112.91709]
[1610214649713,1.8722,1220.2,1220.1,112.91709]
[1610214650313,4.00959,1220.5,1220.1,112.91709]
[1610214650713,4.00959,1220.5,1220.2,50.0]
[1610214651115,4.00959,1220.5,1220.4,4.00959]
[1610214651714,4.00959,1220.5,1220.4,61.22999]
[1610214651913,4.00959,1220.5,1220.4,111.22999]
[1610214653214,4.00959,1220.5,1220.4,107.2204]
[1610214657023,6.32209,1220.5,1220.4,89.2204]
[1610214662139,2.3125,1220.5,1220.4,89.2204]
[1610214662340,2.4202,1221.0,1220.4,50.0]
[1610214662539,1.8113,1220.6,1220.5,52.2923]
[1610214662740,1.8113,1220.6,1220.5,102.2923]
[1610214663340,1.8113,1220.6,1220.5,106.30189]
[1610214663744,4.00959,1220.9,1220.5,106.30189]
[1610214664141,4.00959,1220.9,1220.6,50.0]
[1610214664539,4.00959,1220.9,1220.7,50.0]
[1610214664940,4.00959,1220.9,1220.6,50.0]
[1610214665140,4.00959,1220.9,1220.7,50.0]
[1610214665342,4.00959,1220.9,1220.7,104.93009]
[1610214665640,4.00959,1220.9,1220.7,54.93009]
[1610214666241,4.00959,1220.9,1220.8,50.0]
[1610214666940,7.32779,1220.9,1220.8,50.0]
[1610214668544,4.00959,1220.9,1220.8,50.0]
[1610214669645,7.27979,1220.9,1220.8,50.0]
[1610214670350,4.00959,1220.9,1220.8,50.0]
[1610214671348,1.8703,1221.0,1220.8,50.0]
[1610214671550,1.8703,1221.0,1220.9,107.5374]
[1610214671749,4.00959,1221.2,1220.9,57.5374]
[1610214672148,4.00959,1221.2,1221.0,50.0]
[1610214672548,4.00959,1221.2,1221.1,50.0]
[1610214673150,4.00959,1221.2,1221.0,50.0]
[1610214673350,4.00959,1221.2,1221.1,50.0]
[1610214674350,2.0481,1221.4,1221.1,50.0]
[1610214674550,86.96994492,1221.7,1221.1,50.0]
[1610214674750,86.96994492,1221.7,1221.3,68.6864]
[1610214674951,86.96994492,1221.7,1221.2,50.0]
[1610214674952,86.96994492,1221.7,1221.4,65.0466]
[1610214675351,86.96994492,1221.7,1221.5,50.0]
[1610214675751,86.96994492,1221.7,1221.6,50.0]
[1610214676353,86.96994492,1221.7,1221.5,50.0]
[1610214676551,89.11234492,1221.7,1221.5,50.0]
[1610214676755,2.1424,1221.7,1221.6,50.0]
[1610214676953,2.1424,1221.7,1221.0,4.00959]
[1610214677156,5.14979494,1221.7,1221.6,47.4238]
[1610214677353,5.14979494,1221.7,1221.6,97.4238]
[1610214677553,10.84780603,1221.7,1221.6,97.4238]
[1610214686260,10.84780603,1221.7,1221.6,47.4238]
[1610214686559,29.86731439,1221.7,1221.6,47.4238]
[1610214687060,29.86731439,1221.7,1221.4,59.8696]
[1610214687259,29.86731439,1221.7,1221.1,50.0]
[1610214687459,3.00772927,1221.6,1221.2,47.1684]
[1610214687659,3.00772927,1221.6,1221.0,50.0]
[1610214687859,87.07758028,1221.5,1221.4,49.215]
[1610214688059,87.07758028,1221.5,1221.3,50.0]
[1610214688262,87.09407541,1221.6,1221.5,114.9603]
[1610214688462,87.09407541,1221.6,1221.5,64.9603]
[1610214688762,87.09407541,1221.6,1221.5,114.9603]
[1610214689665,92.79209922,1221.6,1221.5,114.9603]
[1610214691066,94.40679922,1221.6,1221.5,114.9603]
[1610214691668,94.40679922,1221.6,1221.5,50.0]
[1610214691869,5.69802381,1221.6,1221.5,50.0]
[1610214692670,5.69802381,1221.6,1221.5,96.809]
[1610214692869,7.34482381,1221.6,1221.5,96.809]
[1610214693370,5.65639,1221.6,1221.5,96.809]
[1610214693771,7.34465027,1221.6,1221.5,96.809]
[1610214694572,5.69785027,1221.6,1221.5,96.809]
[1610214695572,7.32825027,1221.6,1221.5,96.809]
[1610214696473,5.69785027,1221.6,1221.5,96.809]
[1610214697374,7.33815027,1221.6,1221.5,96.809]
[1610214697974,5.69785027,1221.6,1221.5,96.809]
[1610214711989,7.33255027,1221.6,1221.5,96.809]
[1610214712188,5.69785027,1221.6,1221.5,96.809]
[1610214714693,7.34665027,1221.6,1221.5,96.809]
[1610214714892,5.69785027,1221.6,1221.5,96.809]
[1610214715993,7.35495027,1221.6,1221.5,96.809]
[1610214716496,5.69785027,1221.6,1221.5,50.0]
[1610214716695,5.69785027,1221.6,1221.2,50.0]
[1610214717295,59.5731,1221.4,1221.2,50.0]
[1610214717494,61.3419,1221.4,1221.2,50.0]
[1610214717896,62.9653,1221.4,1221.2,50.0]
[1610214718096,4.00959,1221.3,1221.2,50.0]
[1610214718295,91.29634209,1221.3,1221.2,50.0]
[1610214718495,92.98904883,1221.3,1221.2,50.0]
[1610214718696,155.68754883,1221.3,1221.2,50.0]
[1610214719296,157.30594883,1221.3,1221.2,50.0]
[1610214719499,84.44284442,1221.3,1221.2,50.0]
[1610214720097,103.49864349,1221.3,1221.0,50.0]
[1610214720397,40.80014349,1221.3,1221.0,50.0]
[1610214720597,47.1528,1221.2,1220.7,50.0]
[1610214720799,87.30708929,1221.1,1220.7,50.0]
[1610214721000,88.98068929,1221.1,1220.6,51.0904]
[1610214721400,87.31334941,1221.0,1220.6,51.0904]
[1610214721799,87.31347498,1220.9,1220.6,51.0904]
[1610214722002,88.95697498,1220.9,1220.6,51.0904]
[1610214722200,4.00959,1220.7,1220.6,51.0904]
[1610214722400,5.63649,1220.7,1220.6,51.0904]
[1610214722800,5.63649,1220.7,1220.3,50.0]
[1610214723002,67.7206,1220.6,1220.3,50.0]
[1610214723201,67.7206,1220.6,1220.1,117.1075]
[1610214723602,5.63649,1220.7,1220.1,50.0]
[1610214723802,5.63649,1220.7,1219.9,50.0]
[1610214723803,53.5829,1220.4,1219.9,50.0]
[1610214724002,56.0676,1220.4,1219.9,50.0]
[1610214724204,4.00959,1220.0,1219.9,50.0]
[1610214724402,4.00959,1220.0,1219.7,63.8163]
[1610214724403,5.91359,1220.0,1219.7,63.8163]
[1610214724802,5.91359,1220.0,1219.7,113.8163]
[1610214725002,5.91359,1220.0,1219.7,50.0]
[1610214725601,5.91359,1220.0,1219.6,50.0]
[1610214725802,5.91359,1220.0,1219.5,50.0]
[1610214726202,5.91359,1220.0,1219.4,50.0]
[1610214726203,4.00959,1219.6,1219.4,50.0]
[1610214726404,5.82649,1219.6,1219.4,50.0]
[1610214726604,5.82649,1219.6,1219.0,50.0]
[1610214726804,63.6493,1219.4,1219.0,50.0]
[1610214727004,63.6493,1219.4,1218.8,50.0]
[1610214727603,63.6493,1219.4,1218.6,54.2996]
[1610214728004,63.6493,1219.4,1218.6,104.2996]
[1610214728203,4.00959,1218.7,1218.6,104.2996]
[1610214728404,5.77739,1218.7,1218.5,50.0]
[1610214728603,5.77739,1218.7,1218.4,50.0]
[1610214729004,5.77739,1218.7,1218.2,57.3775]
[1610214729204,5.77739,1218.7,1218.5,50.0]
[1610214729405,7.41269,1218.7,1218.5,50.0]
[1610214729603,5.77739,1218.7,1218.0,4.00959]
[1610214729806,5.77739,1218.7,1218.5,64.9437]
[1610214730005,5.77739,1218.7,1218.6,50.0]
[1610214731306,7.41879,1218.7,1218.6,50.0]
[1610214732206,5.77739,1218.7,1218.6,50.0]
[1610214733207,7.42339,1218.7,1218.6,50.0]
[1610214733406,7.42339,1218.7,1218.5,50.0]
[1610214733706,7.42339,1218.7,1218.2,50.8926]
[1610214733707,5.77739,1218.7,1218.2,50.8926]
[1610214733906,5.77739,1218.7,1218.6,50.0]
[1610214734106,5.77739,1218.7,1218.3,50.0]
[1610214734306,4.00959,1218.4,1218.3,50.0]
[1610214734506,6.39689,1218.4,1218.3,50.0]
[1610214735306,6.39689,1218.4,1218.0,50.0]
[1610214735706,8.02569,1218.4,1217.8,4.00959]
[1610214735907,6.39689,1218.4,1217.8,4.00959]
[1610214736107,2.3873,1218.4,1218.1,50.0]
[1610214736307,2.3873,1218.4,1218.3,4.00959]
[1610214736709,2.3873,1218.4,1218.3,54.00959]
[1610214737108,2.3873,1218.4,1218.3,102.8829]
[1610214737720,2.3873,1218.4,1218.3,104.13605583]
[1610214737911,4.00959,1218.6,1218.3,106.44185583]
[1610214738108,87.15049296,1219.8,1218.6,57.3904]
[1610214738308,87.15049296,1219.8,1218.6,63.96889]
[1610214738514,84.36214379,1220.4,1218.6,63.96889]
[1610214738515,69.43306346,1220.1,1218.7,50.0]
[1610214738809,87.30864211,1220.3,1218.7,50.0]
[1610214739208,151.6131957,1220.4,1218.8,50.0]
[1610214739608,151.6131957,1220.4,1218.9,50.0]
[1610214739609,64.3375,1220.4,1218.9,50.0]
[1610214739810,64.3375,1220.4,1219.1,8.8286]
[1610214740311,87.26604384,1220.5,1219.5,4.00959]
[1610214740511,20.05119401,1221.1,1219.6,50.0]
[1610214740512,87.31743311,1220.6,1219.6,50.0]
[1610214741210,87.31743311,1220.6,1219.8,55.2846]
[1610214741410,87.3334176,1220.8,1219.8,2.4881]
[1610214741811,87.3334176,1220.8,1220.0,68.6858]
[1610214742209,87.3334176,1220.8,1220.1,50.0]
[1610214742410,87.3334176,1220.8,1220.1,51.6588]
[1610214742610,87.31975486,1220.9,1220.2,50.0]
[1610214742911,87.31975486,1220.9,1220.1,1.6588]
[1610214742912,87.31781218,1221.0,1220.3,50.0]
[1610214743311,87.31781218,1221.0,1220.4,50.0]
[1610214743510,87.31781218,1221.0,1220.4,52.1966]
[1610214743709,87.31781218,1221.0,1220.4,2.1966]
[1610214744111,87.31840635,1220.9,1220.5,50.0]
[1610214744310,4.00959,1220.6,1220.5,50.0]
[1610214744710,4.00959,1220.6,1220.4,2.1966]
[1610214745310,4.00959,1220.6,1220.5,50.0]
[1610214746310,4.00959,1220.6,1220.5,54.00959]
[1610214746811,4.00959,1220.6,1220.5,27.00959]
[1610214747412,4.00959,1220.6,1220.5,23.0]
[1610214754827,54.8038,1220.5,1220.1,50.0]
[1610214755027,56.4193,1220.5,1220.0,50.0]
[1610214755427,56.4193,1220.5,1219.8,50.0]
[1610214755627,86.4193,1220.5,1219.8,50.0]
[1610214755828,86.4193,1220.5,1219.7,62.5792]
[1610214756029,100.06434812,1220.5,1219.6,50.0]
[1610214756230,100.06434812,1220.5,1219.4,50.0]
[1610214756428,68.3669,1220.2,1219.4,50.0]
[1610214756629,4.00959,1219.5,1219.3,50.0]
[1610214757028,4.00959,1219.5,1219.4,50.0]
[1610214757429,4.00959,1219.5,1219.3,50.0]
[1610214757829,4.00959,1219.5,1219.4,50.0]
[1610214761235,4.00959,1219.5,1219.3,57.2008]
[1610214761434,4.00959,1219.5,1219.4,50.0]
[1610214762235,4.00959,1219.5,1219.3,57.2008]
[1610214762635,4.00959,1219.5,1219.4,50.0]
[1610214767236,4.00959,1219.5,1219.3,57.2008]
[1610214767837,4.00959,1219.5,1219.4,50.0]
[1610214768238,4.00959,1219.5,1219.3,57.2008]
[1610214768640,4.00959,1219.5,1219.3,7.2008]
[1610214768840,4.00959,1219.5,1219.3,57.2008]
[1610214770842,4.00959,1219.5,1219.3,7.2008]
[1610214771442,4.00959,1219.5,1219.3,57.2008]
[1610214771842,4.00959,1219.5,1219.4,50.0]
[1610214772441,34.00959,1219.5,1219.3,57.2008]
[1610214772743,34.00959,1219.5,1219.4,50.0]
[1610214773243,34.00959,1219.5,1219.3,7.2008]
[1610214773244,34.00959,1219.5,1219.3,57.2008]
[1610214776547,34.00959,1219.5,1219.3,50.0]
[1610214777149,34.00959,1219.5,1219.2,50.0]
[1610214777349,40.92599,1219.5,1219.2,50.0]
[1610214777549,40.92599,1219.5,1218.8,97.2347]
[1610214777949,40.92599,1219.5,1218.9,50.0]
[1610214778152,40.92599,1219.5,1218.8,47.2347]
[1610214778750,4.00959,1218.9,1218.8,47.2347]
[1610214778949,4.00959,1218.9,1218.6,50.0]
[1610214779150,4.00959,1218.9,1218.3,50.0]
[1610214779753,4.00959,1218.9,1218.4,50.0]
[1610214780052,4.00959,1218.9,1218.2,57.4735]
[1610214780253,4.00959,1218.9,1218.3,50.0]
[1610214780654,66.6864,1219.2,1218.4,50.0]
[1610214781054,66.6864,1219.2,1218.4,51.25455384]
[1610214781255,66.6864,1219.2,1218.4,1.25455384]
[1610214781655,66.6864,1219.2,1218.5,50.0]
[1610214782057,66.6864,1219.2,1218.4,51.25455384]
[1610214782458,66.6864,1219.2,1218.4,1.25455384]
[1610214782657,66.6864,1219.2,1218.4,50.0]
[1610214782857,4.00959,1218.5,1218.4,50.0]
[1610214783058,6.04789,1218.5,1218.3,50.0]
[1610214783257,6.04789,1218.5,1218.2,54.8962]
[1610214783558,6.04789,1218.5,1218.4,50.0]
[1610214783957,6.04789,1218.5,1218.3,50.0]
[1610214784158,6.04789,1218.5,1218.2,54.8962]
[1610214784357,6.04789,1218.5,1218.4,50.0]
[1610214784758,6.04789,1218.5,1218.2,54.8962]
[1610214784958,6.04789,1218.5,1218.4,50.0]
[1610214785360,6.04789,1218.5,1218.2,54.8962]
[1610214785759,6.04789,1218.5,1218.4,50.0]
[1610214786159,6.04789,1218.5,1218.3,50.0]
[1610214787162,6.04789,1218.5,1218.4,50.0]
[1610214787360,6.04789,1218.5,1218.3,50.0]
[1610214787761,6.04789,1218.5,1218.4,50.0]
[1610214789261,2.0383,1218.5,1218.4,50.0]
[1610214789461,1.6458,1219.2,1218.4,50.0]
[1610214789662,98.21345756,1219.5,1218.5,55.8939]
[1610214789864,30.0,1219.5,1218.5,53.405]
[1610214790062,30.0,1219.5,1218.9,61.3261]
[1610214790263,30.0,1219.5,1218.6,50.0]
[1610214790462,30.0,1219.5,1219.0,56.9619]
[1610214790664,30.0,1219.5,1219.0,106.9619]
[1610214790864,4.00959,1219.1,1219.0,60.97149]
[1610214791464,4.00959,1219.1,1219.0,110.97149]
[1610214792966,30.0,1219.5,1219.0,110.97149]